Workbook

Sheet 支出
A1: 陆 丰 市 2021 年 7 月 财 政 预 算 支 出 完 成 情 况 表
A2: 2021-07-31 | L2: 单位：万元
B3: 年 初 | C3: 累计 | D3: 占年 | E3: 上年 | F3: 比上年 | G3: 比上年 | H3: 本月 | I3: 上年 | J3: 比上年 | K3: 比上年
A4: 支 出 项 目 | B4: 预 算 | C4: 完成 | D4: 预算 | E4: 同期 | F4: 同期增 | G4: 同期增 | H4: 完成 | I4: 同月 | J4: 同月增 | K4: 同月增 | L4: 备 注
B5: 数 | C5: 数 | D5: % | E5: 完成 | F5: 减额 | G5: (减)% | H5: 数 | I5: 完成 | J5: 减额 | K5: (减)%
A6: 201、一般公共服务支出 | B6: 51,911 | C6: 40,654 | D6: =C6/B6*100 -> 78.3 | E6: 35,586 | F6: =C6-E6 -> 5,068 | G6: =F6/E6*100 -> 14.24 | H6: 4,639 | I6: 3,736 | J6: =H6-I6 -> 903 | K6: =J6/I6*100 -> 24.17
A7: 203、国防支出 | C7: 123 | E7: 2 | F7: =C7-E7 -> 121 | G7: 6,050.00
A8: 204、公共安全支出 | B8: 45,818 | C8: 34,216 | D8: =C8/B8*100 -> 74.7 | E8: 23,870 | F8: 10,346 | G8: 43.34 | H8: 5,126 | I8: 3,930 | J8: =H8-I8 -> 1,196 | K8: =J8/I8*100 -> 30.43
A9: 205、教育支出 | B9: 208,849 | C9: 159,286 | D9: =C9/B9*100 -> 76.3 | E9: 155,444 | F9: 3,842 | G9: 2.47 | H9: 7,182 | I9: 17,558 | J9: -10,376 | K9: -59.10
A10: 206、科学技术支出 | B10: 2,354 | C10: 7,368 | D10: =C10/B10*100 -> 313.0 | E10: 5,700 | F10: 1,668 | G10: 29.26 | H10: 1,016 | I10: 5,424 | J10: -4,408 | K10: -81.27 | L10: 按考核要求，科学技术支出必须占一般公共预算支出1.2%，为此从消化历年挂账列支本科目。
A11: 207、文化体育与传媒支出 | B11: 14,952 | C11: 14,778 | D11: =C11/B11*100 -> 98.8 | E11: 14,349 | F11: 429 | G11: 2.99 | H11: 3,352 | I11: 2,928 | J11: 424 | K11: 14.48
A12: 208、社会保障和就业支出 | B12: 121,267 | C12: 76,189 | D12: =C12/B12*100 -> 62.8 | E12: 88,243 | F12: -12,054 | G12: -13.66 | H12: 7,092 | I12: 42,204 | J12: -35,112 | K12: -83.20
A13: 210、卫生健康支出 | B13: 160,629 | C13: 109,894 | D13: =C13/B13*100 -> 68.4 | E13: 109,006 | F13: 888 | G13: 0.81 | H13: 3,566 | I13: 3,448 | J13: 118 | K13: 3.42
A14: 211、节能环保支出 | B14: 6,363 | C14: 2,969 | D14: =C14/B14*100 -> 46.7 | E14: 5,420 | F14: -2,451 | G14: -45.22 | H14: 460 | I14: 450 | J14: 10 | K14: 2.22
A15: 212、城乡社区支出 | B15: 33,031 | C15: 17,047 | D15: =C15/B15*100 -> 51.6 | E15: 21,031 | F15: -3,984 | G15: -18.94 | H15: 1,631 | I15: 2,698 | J15: -1,067 | K15: -39.55
A16: 213、农林水支出 | B16: 136,048 | C16: 75,649 | D16: =C16/B16*100 -> 55.6 | E16: 64,392 | F16: 11,257 | G16: 17.48 | H16: 6,400 | I16: 7,190 | J16: =H16-I16 -> -790 | K16: =J16/I16*100 -> -10.99
A17: 214、交通运输支出 | B17: 36,907 | C17: 15,922 | D17: =C17/B17*100 -> 43.1 | E17: 27,117 | F17: -11,195 | G17: -41.28 | H17: 856 | I17: 2,173 | J17: =H17-I17 -> -1,317 | K17: =J17/I17*100 -> -60.61
A18: 215、资源勘探信息等支出 | B18: 430 | C18: 359 | D18: =C18/B18*100 -> 83.5 | E18: 366 | F18: -7 | G18: -1.91 | H18: 18 | I18: 102 | J18: =H18-I18 -> -84 | K18: =J18/I18*100 -> -82.35
A19: 216、商业服务业等支出 | B19: 796 | C19: 830 | D19: =C19/B19*100 -> 104.3 | E19: 418 | F19: 412 | G19: 98.56 | H19: 56 | I19: 33 | J19: =H19-I19 -> 23 | K19: =J19/I19*100 -> 69.70
A20: 217、金融支出 | B20: 185
A21: 220、自然资源海洋气象等支出 | B21: 6,653 | C21: 5,618 | D21: =C21/B21*100 -> 84.4 | E21: 5,567 | F21: 51 | G21: 0.92 | H21: 448 | I21: 611 | J21: =H21-I21 -> -163 | K21: =J21/I21*100 -> -26.68
A22: 221、住房保障支出 | B22: 15,011 | C22: 6,366 | D22: =C22/B22*100 -> 42.4 | E22: 5,200 | F22: 1,166 | G22: =F22/E22*100 -> 22.42 | H22: 1,007 | I22: 850 | J22: 157 | K22: =J22/I22*100 -> 18.47
A23: 222、粮油物资储备支出 | B23: 4,882 | C23: 613 | D23: =C23/B23*100 -> 12.6 | E23: 2,222 | F23: -1,609 | G23: =F23/E23*100 -> -72.41 | I23: 96 | J23: -96 | K23: =J23/I23*100 -> -100.00
A24: 224、灾害防治及应急管理支出 | B24: 3,504 | C24: 2,037 | D24: =C24/B24*100 -> 58.1 | E24: 2,567 | F24: -530 | G24: =F24/E24*100 -> -20.65 | H24: 190 | I24: 380 | J24: -190 | K24: =J24/I24*100 -> -50.00
A25: 232、债务付息支出 | B25: 1,600 | C25: 1,070 | D25: =C25/B25*100 -> 66.9 | E25: 872 | F25: 198 | G25: 22.71 | H25: 130 | I25: 131 | J25: -1 | K25: =J25/I25*100 -> -0.76
A26: 233、债务发行费用支出 | E26: 16 | F26: -16 | G26: -100.00
A27: 229、其他支出 | B27: 42,880 | C27: 1,587 | D27: =C27/B27*100 -> 3.7 | E27: 2,465 | F27: -878 | G27: -35.62 | H27: 189 | I27: -482 | J27: 671 | K27: =J27/I27*100 -> -139.21
A28: 一、一般公共预算支出合计 | B28: =SUM(B6:B27) -> 894,070 | C28: =SUM(C6:C27) -> 572,575 | D28: =C28/B28*100 -> 64.0 | E28: =SUM(E6:E27) -> 569,853 | F28: =C28-E28 -> 2,722 | G28: 0.48 | H28: =SUM(H6:H27) -> 43,358 | I28: =SUM(I6:I27) -> 93,460 | J28: -50,102 | K28: -53.61
A29: 二、政府性基金预算支出 | B29: 81,007 | C29: 56,454 | D29: =C29/B29*100 -> 69.7 | E29: 204,853 | F29: =C29-E29 -> -148,399 | G29: -72.44 | H29: 1,284 | I29: 16,212 | J29: -14,928 | K29: -92.08
A30: 三、国有资本经营支出 | B30: 500 | C30: 224 | D30: =C30/B30*100 -> 44.8 | E30: 145 | F30: =C30-E30 -> 79 | G30: 54.48 | H30: 20 | I30: 16 | J30: 4 | K30: 25.00
A31: 四、债务还本支出 | C31: 6,310 | E31: 1,002 | H31: 6,310 | J31: 6,310
A32: 支出合计 | B32: =B28+B29+B30 -> 975,577 | C32: =C28+C29+C30+C31 -> 635,563 | D32: =C32/B32*100 -> 65.1 | E32: =E28+E29+E30+E31 -> 775,853 | F32: =C32-E32 -> -140,290 | G32: =F32/E32*100 -> -18.08 | H32: =H28+H29+H30+H31 -> 50,972 | I32: =I28+I29+I30+I31 -> 109,688 | J32: =H32-I32 -> -58,716 | K32: -53.53

Sheet 收入
A1: 陆 丰 市 2021 年 7 月 财 政 预 算 收 入 完 成 情 况 表
A2: 2021-07-31 | L2: 单位：万元
B3: 年 度 | C3: 累 计 | D3: 占 年 | E3: 上 年 | F3: 比上年 | G3: 比上年 | H3: 本 月 | I3: 上 年 | J3: 比上年 | K3: 比上年
A4: 收 入 项 目 | B4: 预 算 | C4: 完 成 | D4: 预 算 | E4: 同 期 | F4: 同期增 | G4: 同期增 | H4: 完 成 | I4: 同 月 | J4: 同月增 | K4: 同月增 | L4: 备 注
B5: 数 | C5: 数 | D5: % | E5: 完 成 | F5: 减额 | G5: (减)% | H5: 数 | I5: 完 成 | J5: 减额 | K5: (减)%
A6: （一）税收收入 | B6: =SUM(B7:B20) -> 54,350 | C6: =SUM(C7:C20) -> 33,672 | D6: =C6/B6*100 -> 62.0 | E6: =SUM(E7:E20) -> 27,736 | F6: =C6-E6 -> 5,936 | G6: =F6/E6*100 -> 21.4 | H6: =SUM(H7:H20) -> 4,396 | I6: =SUM(I7:I20) -> 3694 | J6: =H6-I6 -> 702 | K6: =J6/I6*100 -> 19.0
A7: 1、增值税 | B7: 14,350 | C7: 8,419 | D7: =C7/B7*100 -> 58.7 | E7: 7,612 | F7: =C7-E7 -> 807 | G7: =F7/E7*100 -> 10.6 | H7: 1,363 | I7: 1388 | J7: =H7-I7 -> -25 | K7: =J7/I7*100 -> -1.8
A8: 2、企业所得税 | B8: 3,415 | C8: 5,400 | D8: 158.1 | E8: 2,341 | F8: =C8-E8 -> 3,059 | G8: 130.7 | H8: 749 | I8: 510 | J8: =H8-I8 -> 239 | K8: 46.9
A9: 3、个人所得税 | B9: 1,380 | C9: 706 | D9: 51.2 | E9: 722 | F9: -16 | G9: -2.2 | H9: 85 | I9: 74 | J9: 11 | K9: 14.9
A10: 4、资源税 | B10: 30 | C10: 619 | D10: 2063.3 | E10: 24 | F10: 595 | G10: 2,479.2 | H10: 4 | I10: 5 | J10: -1 | K10: -20.0
A11: 5、城市维护建设税 | B11: 5,180 | C11: 2,999 | D11: 57.9 | E11: 2,524 | F11: 475 | G11: 18.8 | H11: 462 | I11: 462 | J11: 0 | K11: 0.0
A12: 6、房产税 | B12: 2,880 | C12: 223 | D12: 7.7 | E12: 673 | F12: -450 | G12: -66.9 | H12: 10 | I12: 19 | J12: -9 | K12: -47.4
A13: 7、印花税 | B13: 1,835 | C13: 929 | D13: 50.6 | E13: 1,271 | F13: -342 | G13: -26.9 | H13: 143 | I13: 86 | J13: 57 | K13: 66.3
A14: 8、城镇土地使用税 | B14: 2,205 | C14: 194 | D14: 8.8 | E14: 407 | F14: -213 | G14: -52.3 | H14: 2 | I14: 26 | J14: -24 | K14: -92.3
A15: 9、土地增值税 | B15: 5,280 | C15: 3,165 | D15: 59.9 | E15: 2,111 | F15: 1,054 | G15: 49.9 | H15: 233 | I15: 404 | J15: -171 | K15: -42.3
A16: 10、车船使用税 | B16: 1,755 | C16: 847 | D16: 48.3 | E16: 750 | F16: 97 | G16: 12.9 | H16: 118 | I16: 77 | J16: 41 | K16: 53.2
A17: 11、环保税 | B17: 120 | C17: 101 | D17: 84.2 | E17: 71 | F17: 30 | G17: 42.3 | H17: 37 | I17: 24 | J17: 13 | K17: 54.2
A18: 12、耕地占用税 | B18: 8,040 | C18: 3,136 | D18: 39.0 | E18: 4,856 | F18: -1,720 | G18: -35.4 | H18: 29 | J18: 29
A19: 13、契 税 | B19: 7,865 | C19: 6,933 | D19: 88.2 | E19: 4,365 | F19: 2,568 | G19: 58.8 | H19: 1,161 | I19: 619 | J19: 542 | K19: 87.6
A20: 14、其他税收收入 | B20: 15 | C20: 1 | D20: 6.7 | E20: 9 | F20: -8 | G20: -88.9
A21: （二）非税收入 | B21: =B22+B23+B24+B25+B27+B28+B26+B29 -> 39,385 | C21: =SUM(C22:C29) -> 27,198 | D21: 69.1 | E21: =E22+E23+E24+E25+E26+E27+E28+E29 -> 20,382 | F21: =C21-E21 -> 6,816 | G21: 33.4 | H21: =H22+H23+H24+H25+H26+H27+H28+H29 -> 675 | I21: =I22+I23+I24+I25+I26+I27+I28+I29 -> 2308 | J21: =H21-I21 -> -1,633 | K21: =J21/I21*100 -> -70.8
A22: 1、专项收入 | B22: 10,440 | C22: 4,532 | D22: 43.4 | E22: 3,054 | F22: =C22-E22 -> 1,478 | G22: 48.4 | H22: 342 | I22: 300 | J22: =H22-I22 -> 42 | K22: =J22/I22*100 -> 14.0
A23: 2、行政事业性收费收入 | B23: 10,855 | C23: 9,742 | D23: 89.7 | E23: 4,133 | F23: 5,609 | G23: 135.7 | H23: 257 | I23: 316 | J23: =H23-I23 -> -59 | K23: -18.7
A24: 3、罚没收入 | B24: 3,550 | C24: 1,804 | D24: 50.8 | E24: 2,552 | F24: -748 | G24: -29.3 | I24: 389 | J24: -389 | K24: -100.0
A25: 4、国有资源（资产）有偿使用收入 | B25: 5,945 | C25: 7,028 | D25: 118.2 | E25: 3,162 | F25: 3,866 | G25: 122.3 | H25: 271 | I25: 70 | J25: 201 | K25: 287.1
A26: 5、政府住房基金收入 | B26: 150 | C26: 290 | D26: 193.3 | E26: 77 | F26: 213 | G26: 276.6
A27: 6、捐赠收入 | B27: 7,540 | C27: 2,535 | D27: 33.6 | E27: 5,912 | F27: -3,377 | G27: -57.1 | H27: 30 | I27: 1000 | J27: -970 | K27: -97.0
A28: 7、其他收入 | B28: 900 | C28: 1,267 | D28: 140.8 | E28: 1,492 | F28: -225 | G28: -15.1 | H28: -225 | I28: 233 | J28: -458 | K28: -196.6
A29: 8、国有资本经营收入 | B29: 5
A30: 一、一般公共预算收入 | B30: =B6+B21 -> 93,735 | C30: =C6+C21 -> 60,870 | D30: =C30/B30*100 -> 64.9 | E30: =E6+E21 -> 48,118 | F30: =C30-E30 -> 12,752 | G30: =F30/E30*100 -> 26.5 | H30: =H6+H21 -> 5,071 | I30: =I6+I21 -> 6002 | J30: =H30-I30 -> -931 | K30: -15.5
A31: 二、政府性基金预算收入小计 | B31: 165,400 | C31: 76,651 | D31: =C31/B31*100 -> 46.3 | E31: 66,315 | F31: =C31-E31 -> 10,336 | G31: =F31/E31*100 -> 15.6 | H31: 10,448 | I31: 5542 | J31: =H31-I31 -> 4,906 | K31: 88.5
A32: 其中：国有土地使用权出让收入 | B32: 155,789 | C32: 73,214 | D32: =C32/B32*100 -> 47.0 | E32: 58,867 | F32: =C32-E32 -> 14,347 | G32: =F32/E32*100 -> 24.4 | H32: 10,322 | I32: 755 | J32: =H32-I32 -> 9,567 | K32: 1,267.2
A33: 三、国有资本经营收入小计 | B33: 500
A34: 收入合计 | B34: =B30+B31+B33 -> 259,635 | C34: =C30+C31+C33 -> 137,521 | D34: =C34/B34*100 -> 53.0 | E34: =E30+E31+E33 -> 114,433 | F34: =C34-E34 -> 23,088 | G34: =F34/E34*100 -> 20.2 | H34: =H30+H31+H33 -> 15,519 | I34: =I30+I31+I33 -> 11544 | J34: =H34-I34 -> 3,975 | K34: 34.4
L35: 陆丰市财政局国库股

Sheet Sheet3
